[Event "*** SCC Grand Prix: Titled Tuesday Blitz"]
[Site "Chess.com"]
[Date "2020.06.02"]
[Round "4"]
[White "erlesfar"]
[Black "ecwinslow"]
[Result "0-1"]
[WhiteElo "2366"]
[BlackElo "2137"]
[TimeControl "180+1"]
[EndTime "10:39:34 PDT"]
[Termination "ecwinslow won by resignation"]

1. e4 {[%clk 0:02:35.3]} 1... c5 {[%clk 0:02:55]} 2. Nc3 {[%clk 0:02:29.6]} 2...
d6 {[%clk 0:02:52.2]} 3. f4 {[%clk 0:02:23]} 3... g6 {[%clk 0:02:49.9]} 4. Nf3
{[%clk 0:02:20.7]} 4... Bg7 {[%clk 0:02:50.3]} 5. Bc4 {[%clk 0:02:18.3]} 5...
Nc6 {[%clk 0:02:48.4]} 6. O-O {[%clk 0:02:17.7]} 6... e6 {[%clk 0:02:46.5]} 7.
d3 {[%clk 0:02:16.6]} 7... Nge7 {[%clk 0:02:45]} 8. f5 {[%clk 0:02:16.1]} 8...
exf5 {[%clk 0:02:42.4]} 9. Qe1 {[%clk 0:02:13.7]} 9... h6 {[%clk 0:02:37.8]} 10.
Qh4 {[%clk 0:02:01.1]} 10... g5 {[%clk 0:02:22.1]} 11. Qh5 {[%clk 0:01:59.7]}
11... Ng6 {[%clk 0:02:15.7]} 12. exf5 {[%clk 0:01:16.6]} 12... Nge5 {[%clk
0:01:43.1]} 13. Nxe5 {[%clk 0:00:41.8]} 13... Nxe5 {[%clk 0:01:41]} 14. f6
{[%clk 0:00:32.4]} 14... Bxf6 {[%clk 0:01:35.8]} 15. Ne4 {[%clk 0:00:30.3]}
15... Be7 {[%clk 0:01:30.4]} 16. Rxf7 {[%clk 0:00:18.4]} 16... Nxf7 {[%clk
0:00:57.9]} 17. Qxf7+ {[%clk 0:00:17]} 17... Kd7 {[%clk 0:00:58.4]} 18. Be3
{[%clk 0:00:16.2]} 18... Qf8 {[%clk 0:00:50.3]} 19. Qd5 {[%clk 0:00:15.7]} 19...
Kc7 {[%clk 0:00:45]} 20. d4 {[%clk 0:00:15.4]} 20... Qf5 {[%clk 0:00:36.4]} 21.
dxc5 {[%clk 0:00:14]} 21... Qxd5 {[%clk 0:00:33.7]} 22. Bxd5 {[%clk 0:00:14.4]}
22... dxc5 {[%clk 0:00:33.8]} 23. Re1 {[%clk 0:00:14.3]} 23... Bf5 {[%clk
0:00:29]} 24. c4 {[%clk 0:00:13.8]} 24... Bxe4 {[%clk 0:00:24.2]} 25. Bxe4
{[%clk 0:00:12.8]} 25... Bd6 {[%clk 0:00:22.3]} 26. Bf2 {[%clk 0:00:12.6]} 26...
Rae8 {[%clk 0:00:21.1]} 27. g3 {[%clk 0:00:13]} 27... b6 {[%clk 0:00:19.8]} 28.
Kg2 {[%clk 0:00:13.1]} 28... Re7 {[%clk 0:00:19.9]} 29. b3 {[%clk 0:00:13]}
29... Rhe8 {[%clk 0:00:20.1]} 30. Kf3 {[%clk 0:00:13]} 30... g4+ {[%clk
0:00:19.9]} 31. Kxg4 {[%clk 0:00:12.9]} 31... Rxe4+ {[%clk 0:00:19.5]} 32. Rxe4
{[%clk 0:00:13.4]} 32... Rxe4+ {[%clk 0:00:20.1]} 33. Kf3 {[%clk 0:00:13.7]}
33... Re5 {[%clk 0:00:20.2]} 34. Be3 {[%clk 0:00:13.8]} 34... a6 {[%clk
0:00:20.3]} 35. Bxh6 {[%clk 0:00:12.9]} 35... Rh5 {[%clk 0:00:20.9]} 36. h4
{[%clk 0:00:11.8]} 36... Rxh6 {[%clk 0:00:20.7]} 37. Kg4 {[%clk 0:00:11.7]}
37... Kd7 {[%clk 0:00:21.3]} 38. Kg5 {[%clk 0:00:11.6]} 38... Rh8 {[%clk
0:00:21.7]} 39. g4 {[%clk 0:00:12]} 39... Ke6 {[%clk 0:00:22.2]} 0-1

[Event "*** SCC Grand Prix: Titled Tuesday Blitz"]
[Site "Chess.com"]
[Date "2020.06.02"]
[Round "4"]
[White "Marty435"]
[Black "OK97"]
[Result "0-1"]
[WhiteElo "2433"]
[BlackElo "2761"]
[TimeControl "180+1"]
[EndTime "10:39:35 PDT"]
[Termination "OK97 won on time"]

1. d4 {[%clk 0:03:00.9]} 1... Nf6 {[%clk 0:02:59.8]} 2. Bg5 {[%clk 0:03:01]}
2... d5 {[%clk 0:02:59.2]} 3. Bxf6 {[%clk 0:03:00.4]} 3... gxf6 {[%clk
0:02:59.4]} 4. e3 {[%clk 0:03:01.3]} 4... c5 {[%clk 0:02:59.2]} 5. dxc5 {[%clk
0:03:01.8]} 5... Nc6 {[%clk 0:02:59.5]} 6. c3 {[%clk 0:03:00]} 6... e5 {[%clk
0:02:50.7]} 7. b4 {[%clk 0:02:39.6]} 7... a5 {[%clk 0:02:49.3]} 8. Bb5 {[%clk
0:02:38.8]} 8... Rg8 {[%clk 0:02:36.7]} 9. Kf1 {[%clk 0:02:20.3]} 9... axb4
{[%clk 0:02:21.1]} 10. cxb4 {[%clk 0:02:18.6]} 10... Rg4 {[%clk 0:02:20.5]} 11.
Nc3 {[%clk 0:01:49.4]} 11... d4 {[%clk 0:01:50.5]} 12. exd4 {[%clk 0:01:42.5]}
12... Rxd4 {[%clk 0:01:48.8]} 13. Qb1 {[%clk 0:01:22]} 13... Bd7 {[%clk
0:01:34.9]} 14. a3 {[%clk 0:01:22]} 14... b6 {[%clk 0:01:07]} 15. Nge2 {[%clk
0:01:10.3]} 15... bxc5 {[%clk 0:01:00.4]} 16. bxc5 {[%clk 0:00:41.1]} 16... Bxc5
{[%clk 0:00:56.5]} 17. Nxd4 {[%clk 0:00:40.6]} 17... Bxd4 {[%clk 0:00:55.7]} 18.
Qxh7 {[%clk 0:00:20.5]} 18... Bxc3 {[%clk 0:00:51.7]} 19. Rc1 {[%clk 0:00:20.5]}
19... Qa5 {[%clk 0:00:45.5]} 20. Qd3 {[%clk 0:00:10.9]} 20... Rd8 {[%clk
0:00:32.8]} 21. Rxc3 {[%clk 0:00:08.7]} 21... Nd4 {[%clk 0:00:22.1]} 22. Bxd7+
{[%clk 0:00:07.9]} 22... Rxd7 {[%clk 0:00:23]} 23. g3 {[%clk 0:00:07]} 23... Ke7
{[%clk 0:00:19.4]} 24. Qc4 {[%clk 0:00:05.1]} 24... Qa8 {[%clk 0:00:18.3]} 25.
Qc5+ {[%clk 0:00:02.7]} 25... Rd6 {[%clk 0:00:17.8]} 26. Qc7+ {[%clk 0:00:02.4]}
26... Rd7 {[%clk 0:00:16.2]} 27. Qc5+ {[%clk 0:00:02.7]} 27... Ke6 {[%clk
0:00:15.4]} 28. Qc4+ {[%clk 0:00:02.5]} 28... Kf5 {[%clk 0:00:15.9]} 29. Qd3+
{[%clk 0:00:02.1]} 29... Ke6 {[%clk 0:00:14.6]} 30. Qc4+ {[%clk 0:00:02.3]}
30... Kf5 {[%clk 0:00:14.5]} 31. g4+ {[%clk 0:00:02.5]} 31... Kf4 {[%clk
0:00:12.8]} 32. Rg1 {[%clk 0:00:01.2]} 32... Rb7 {[%clk 0:00:13.1]} 0-1

[Event "*** SCC Grand Prix: Titled Tuesday Blitz"]
[Site "Chess.com"]
[Date "2020.06.02"]
[Round "4"]
[White "Mr_Sinigami"]
[Black "kudesnik84"]
[Result "1-0"]
[WhiteElo "2598"]
[BlackElo "2375"]
[TimeControl "180+1"]
[EndTime "10:39:35 PDT"]
[Termination "Mr_Sinigami won by resignation"]

1. d4 {[%clk 0:03:00.9]} 1... g6 {[%clk 0:02:56.5]} 2. Nf3 {[%clk 0:02:59.8]}
2... Bg7 {[%clk 0:02:56.5]} 3. Bf4 {[%clk 0:02:59]} 3... d6 {[%clk 0:02:55.6]}
4. e3 {[%clk 0:02:58.4]} 4... Nd7 {[%clk 0:02:44.4]} 5. h3 {[%clk 0:02:53.2]}
5... Ngf6 {[%clk 0:02:39.8]} 6. Be2 {[%clk 0:02:51]} 6... O-O {[%clk 0:02:39.8]}
7. O-O {[%clk 0:02:49.6]} 7... b6 {[%clk 0:02:40.4]} 8. a4 {[%clk 0:02:45.2]}
8... a6 {[%clk 0:02:37.6]} 9. c3 {[%clk 0:02:41.9]} 9... Ne4 {[%clk 0:02:33.3]}
10. Nfd2 {[%clk 0:02:39.9]} 10... Nxd2 {[%clk 0:02:31.3]} 11. Nxd2 {[%clk
0:02:39.2]} 11... Bb7 {[%clk 0:02:30.6]} 12. Bf3 {[%clk 0:02:35.3]} 12... Qc8
{[%clk 0:02:24]} 13. Re1 {[%clk 0:02:34.1]} 13... Re8 {[%clk 0:02:14.6]} 14. Bg3
{[%clk 0:02:27.9]} 14... e5 {[%clk 0:02:09.2]} 15. b4 {[%clk 0:02:26.6]} 15...
a5 {[%clk 0:01:39.6]} 16. b5 {[%clk 0:02:22]} 16... d5 {[%clk 0:01:31.3]} 17.
Rc1 {[%clk 0:02:05.4]} 17... c5 {[%clk 0:00:56.7]} 18. bxc6 {[%clk 0:02:00.9]}
18... Bxc6 {[%clk 0:00:54.6]} 19. c4 {[%clk 0:01:59.4]} 19... Qb7 {[%clk
0:00:52.9]} 20. cxd5 {[%clk 0:01:46.2]} 20... Bxd5 {[%clk 0:00:53.8]} 21. e4
{[%clk 0:01:45.7]} 21... f5 {[%clk 0:00:18.7]} 22. exd5 {[%clk 0:01:38.8]} 22...
e4 {[%clk 0:00:18.6]} 23. Be2 {[%clk 0:01:28.6]} 23... Kh8 {[%clk 0:00:16.4]}
24. Bb5 {[%clk 0:01:18.2]} 24... Qxd5 {[%clk 0:00:13.5]} 25. Bc6 {[%clk
0:01:15.9]} 25... Qxd4 {[%clk 0:00:12.7]} 26. Bxa8 {[%clk 0:01:14.7]} 26... Rxa8
{[%clk 0:00:12.7]} 27. Nxe4 {[%clk 0:01:01.5]} 27... fxe4 {[%clk 0:00:11.9]} 28.
Qxd4 {[%clk 0:00:59.9]} 28... Bxd4 {[%clk 0:00:12.8]} 29. Red1 {[%clk
0:00:59.7]} 29... Nc5 {[%clk 0:00:12.2]} 30. Rxd4 {[%clk 0:00:50.4]} 30... Nb3
{[%clk 0:00:12.2]} 31. Rc7 {[%clk 0:00:40.6]} 31... Nxd4 {[%clk 0:00:10.2]} 32.
Be5+ {[%clk 0:00:39.4]} 32... Kg8 {[%clk 0:00:11.1]} 33. Bxd4 {[%clk 0:00:38.7]}
33... b5 {[%clk 0:00:09.7]} 34. axb5 {[%clk 0:00:37.3]} 34... Rd8 {[%clk
0:00:09.8]} 35. b6 {[%clk 0:00:31.5]} 35... Rxd4 {[%clk 0:00:09.1]} 36. b7
{[%clk 0:00:30.7]} 36... Rb4 {[%clk 0:00:08.2]} 37. Rc8+ {[%clk 0:00:30.1]} 1-0

[Event "*** SCC Grand Prix: Titled Tuesday Blitz"]
[Site "Chess.com"]
[Date "2020.06.02"]
[Round "4"]
[White "profofchess"]
[Black "MacDaddyMac"]
[Result "1-0"]
[WhiteElo "2450"]
[BlackElo "2270"]
[TimeControl "180+1"]
[EndTime "10:39:35 PDT"]
[Termination "profofchess won by resignation"]

1. e4 {[%clk 0:03:00.9]} 1... e6 {[%clk 0:02:59.7]} 2. d4 {[%clk 0:02:58.2]}
2... d5 {[%clk 0:03:00]} 3. Nc3 {[%clk 0:02:57.8]} 3... Nf6 {[%clk 0:02:59.9]}
4. Bg5 {[%clk 0:02:57.4]} 4... Be7 {[%clk 0:03:00]} 5. e5 {[%clk 0:02:56.6]}
5... Nfd7 {[%clk 0:03:00.4]} 6. h4 {[%clk 0:02:57]} 6... c5 {[%clk 0:03:00.2]}
7. Bxe7 {[%clk 0:02:55.1]} 7... Kxe7 {[%clk 0:03:00]} 8. dxc5 {[%clk 0:02:43.7]}
8... Nxe5 {[%clk 0:02:58.5]} 9. f4 {[%clk 0:02:34.3]} 9... Ned7 {[%clk
0:02:46.3]} 10. Nf3 {[%clk 0:02:24.3]} 10... Nc6 {[%clk 0:02:42.9]} 11. h5
{[%clk 0:01:44.3]} 11... h6 {[%clk 0:02:32]} 12. Qd2 {[%clk 0:01:34.7]} 12...
Nxc5 {[%clk 0:02:28.2]} 13. O-O-O {[%clk 0:01:33.8]} 13... Qa5 {[%clk
0:02:08.2]} 14. Kb1 {[%clk 0:01:31.3]} 14... Ne4 {[%clk 0:01:58.8]} 15. Nxe4
{[%clk 0:01:25.6]} 15... dxe4 {[%clk 0:01:58.2]} 16. Qd6+ {[%clk 0:01:25]} 16...
Kf6 {[%clk 0:01:55.7]} 17. Ne5 {[%clk 0:00:37.5]} 17... Nxe5 {[%clk 0:01:33.6]}
18. fxe5+ {[%clk 0:00:30.2]} 18... Qxe5 {[%clk 0:01:33.1]} 19. Qa3 {[%clk
0:00:27.2]} 19... b6 {[%clk 0:01:04.7]} 20. Be2 {[%clk 0:00:20.2]} 20... Qc5
{[%clk 0:00:58]} 21. Rdf1+ {[%clk 0:00:17.3]} 21... Ke7 {[%clk 0:00:57.5]} 22.
Qg3 {[%clk 0:00:16.8]} 22... Qg5 {[%clk 0:00:37.6]} 23. Qc7+ {[%clk 0:00:15.6]}
23... Bd7 {[%clk 0:00:32.7]} 24. Rxf7+ {[%clk 0:00:15.1]} 24... Kxf7 {[%clk
0:00:28.8]} 25. Qxd7+ {[%clk 0:00:15.2]} 25... Kg8 {[%clk 0:00:28.8]} 26. Qxe6+
{[%clk 0:00:14.6]} 26... Kh7 {[%clk 0:00:20.9]} 27. Qxe4+ {[%clk 0:00:14.3]}
27... g6 {[%clk 0:00:21]} 28. hxg6+ {[%clk 0:00:13.3]} 28... Qxg6 {[%clk
0:00:20.5]} 29. Qe7+ {[%clk 0:00:12.4]} 29... Qg7 {[%clk 0:00:20.6]} 30. Bd3+
{[%clk 0:00:12]} 30... Kg8 {[%clk 0:00:20.5]} 31. Bc4+ {[%clk 0:00:09.7]} 31...
Kh7 {[%clk 0:00:20.4]} 32. Qe4+ {[%clk 0:00:07.9]} 32... Qg6 {[%clk 0:00:19.5]}
33. Qb7+ {[%clk 0:00:07.8]} 33... Qg7 {[%clk 0:00:13.1]} 34. Bd3+ {[%clk
0:00:07.9]} 34... Kg8 {[%clk 0:00:14]} 35. Qxa8+ {[%clk 0:00:07.6]} 35... Kf7
{[%clk 0:00:14.4]} 36. Rf1+ {[%clk 0:00:04.9]} 36... Ke6 {[%clk 0:00:14.4]} 37.
Qc6+ {[%clk 0:00:04.7]} 37... Ke5 {[%clk 0:00:14.8]} 38. Qc3+ {[%clk 0:00:04.6]}
1-0

[Event "*** SCC Grand Prix: Titled Tuesday Blitz"]
[Site "Chess.com"]
[Date "2020.06.02"]
[Round "4"]
[White "Ginger_GM"]
[Black "BabyFacedAssasin"]
[Result "1-0"]
[WhiteElo "2595"]
[BlackElo "2321"]
[TimeControl "180+1"]
[EndTime "10:39:36 PDT"]
[Termination "Ginger_GM won by resignation"]

1. e4 {[%clk 0:03:00.9]} 1... e6 {[%clk 0:02:57.8]} 2. Qe2 {[%clk 0:02:59.2]}
2... Be7 {[%clk 0:02:57.1]} 3. f4 {[%clk 0:02:58.1]} 3... d5 {[%clk 0:02:56.2]}
4. d3 {[%clk 0:02:58.1]} 4... dxe4 {[%clk 0:02:54.7]} 5. dxe4 {[%clk 0:02:57.9]}
5... Nf6 {[%clk 0:02:51.8]} 6. e5 {[%clk 0:02:52.8]} 6... Nd5 {[%clk 0:02:50.2]}
7. Nf3 {[%clk 0:02:43.4]} 7... c5 {[%clk 0:02:48.8]} 8. Qf2 {[%clk 0:02:34.8]}
8... Nc6 {[%clk 0:02:46.5]} 9. c3 {[%clk 0:02:31]} 9... O-O {[%clk 0:02:44.3]}
10. Be2 {[%clk 0:02:25]} 10... b6 {[%clk 0:02:37.9]} 11. O-O {[%clk 0:02:24.3]}
11... Bb7 {[%clk 0:02:36.8]} 12. Na3 {[%clk 0:02:17.6]} 12... a6 {[%clk
0:02:29.5]} 13. Nc2 {[%clk 0:02:12.1]} 13... Qc7 {[%clk 0:02:26.1]} 14. Qg3
{[%clk 0:02:09.9]} 14... f5 {[%clk 0:02:15.3]} 15. h4 {[%clk 0:02:04.1]} 15...
Kh8 {[%clk 0:02:12.4]} 16. Ng5 {[%clk 0:02:02.6]} 16... Bxg5 {[%clk 0:01:58]}
17. hxg5 {[%clk 0:02:01.4]} 17... g6 {[%clk 0:01:58.4]} 18. Kf2 {[%clk
0:01:48.9]} 18... b5 {[%clk 0:01:55.6]} 19. Rh1 {[%clk 0:01:47.9]} 19... Rf7
{[%clk 0:01:54.9]} 20. Be3 {[%clk 0:01:43.6]} 20... Nce7 {[%clk 0:01:33.1]} 21.
Rh3 {[%clk 0:01:34.9]} 21... Nxe3 {[%clk 0:01:30.7]} 22. Nxe3 {[%clk 0:01:34.2]}
22... Nd5 {[%clk 0:01:31.1]} 23. Rah1 {[%clk 0:01:30.9]} 23... c4 {[%clk
0:01:25.9]} 24. Nxd5 {[%clk 0:01:25.2]} 24... Bxd5 {[%clk 0:01:23.9]} 25. Qe3
{[%clk 0:01:25.1]} 25... Rc8 {[%clk 0:01:19.3]} 26. a3 {[%clk 0:01:22.6]} 26...
Qc5 {[%clk 0:01:18.2]} 27. Qxc5 {[%clk 0:01:16]} 27... Rxc5 {[%clk 0:01:19.1]}
28. R1h2 {[%clk 0:01:13.8]} 28... a5 {[%clk 0:01:15.5]} 29. Ke3 {[%clk
0:01:09.5]} 29... Be4 {[%clk 0:01:13.1]} 30. g4 {[%clk 0:00:59.2]} 30... Rd5
{[%clk 0:01:08.6]} 31. a4 {[%clk 0:00:54.8]} 31... fxg4 {[%clk 0:00:54.6]} 32.
Bxg4 {[%clk 0:00:48]} 32... Bf5 {[%clk 0:00:51.1]} 33. Bxf5 {[%clk 0:00:47.8]}
33... exf5 {[%clk 0:00:49.8]} 34. axb5 {[%clk 0:00:45]} 34... Rfd7 {[%clk
0:00:41.5]} 35. e6 {[%clk 0:00:24.7]} 35... Rd3+ {[%clk 0:00:33.2]} 36. Kf2
{[%clk 0:00:24.8]} 36... Rd2+ {[%clk 0:00:31.4]} 37. Kg3 {[%clk 0:00:25.3]}
37... R2d3+ {[%clk 0:00:25.4]} 38. Kh4 {[%clk 0:00:25.5]} 38... Re7 {[%clk
0:00:19.1]} 39. Rxd3 {[%clk 0:00:25.4]} 39... cxd3 {[%clk 0:00:19]} 40. Rd2
{[%clk 0:00:26.3]} 40... Rxe6 {[%clk 0:00:17.7]} 41. Rxd3 {[%clk 0:00:26.9]}
41... Re4 {[%clk 0:00:16.8]} 42. Kg3 {[%clk 0:00:27.4]} 42... Re2 {[%clk
0:00:15.5]} 43. b3 {[%clk 0:00:27]} 43... Rb2 {[%clk 0:00:15.6]} 44. c4 {[%clk
0:00:27.5]} 44... Rc2 {[%clk 0:00:14.8]} 45. b6 {[%clk 0:00:27.1]} 45... Re2
{[%clk 0:00:13.5]} 46. Rd8+ {[%clk 0:00:25.6]} 46... Kg7 {[%clk 0:00:13.4]} 47.
Rd7+ {[%clk 0:00:25.9]} 1-0

[Event "*** SCC Grand Prix: Titled Tuesday Blitz"]
[Site "Chess.com"]
[Date "2020.06.02"]
[Round "4"]
[White "OnePeculiarConundrum"]
[Black "Poghosyan_Suren"]
[Result "0-1"]
[WhiteElo "2240"]
[BlackElo "2440"]
[TimeControl "180+1"]
[EndTime "10:39:36 PDT"]
[Termination "Poghosyan_Suren won by resignation"]

1. e4 {[%clk 0:03:00.9]} 1... e6 {[%clk 0:02:57.9]} 2. d4 {[%clk 0:03:00.3]}
2... d5 {[%clk 0:02:55.8]} 3. e5 {[%clk 0:03:00.2]} 3... c5 {[%clk 0:02:54.4]}
4. c3 {[%clk 0:03:00.2]} 4... Nc6 {[%clk 0:02:52.8]} 5. Nf3 {[%clk 0:03:00.3]}
5... Nh6 {[%clk 0:02:52.5]} 6. a3 {[%clk 0:02:59]} 6... Nf5 {[%clk 0:02:47.1]}
7. b4 {[%clk 0:02:58.4]} 7... cxd4 {[%clk 0:02:47.5]} 8. cxd4 {[%clk 0:02:58.6]}
8... Bd7 {[%clk 0:02:47.6]} 9. Nc3 {[%clk 0:02:52.3]} 9... Rc8 {[%clk
0:02:44.2]} 10. Na4 {[%clk 0:02:35.8]} 10... Ncxd4 {[%clk 0:02:40.4]} 11. Nxd4
{[%clk 0:02:34]} 11... Nxd4 {[%clk 0:02:40.5]} 12. Bd3 {[%clk 0:02:31.8]} 12...
Qc7 {[%clk 0:02:30]} 13. O-O {[%clk 0:02:25.4]} 13... Qxe5 {[%clk 0:02:14.8]}
14. Bb2 {[%clk 0:02:23.9]} 14... Bd6 {[%clk 0:02:14.6]} 15. g3 {[%clk
0:02:18.1]} 15... f5 {[%clk 0:01:14.3]} 16. Kg2 {[%clk 0:01:16.3]} 16... Qf6
{[%clk 0:00:49.6]} 17. Nc5 {[%clk 0:00:51.3]} 17... Bxc5 {[%clk 0:00:45.8]} 18.
bxc5 {[%clk 0:00:52.2]} 18... e5 {[%clk 0:00:46.7]} 19. Bxd4 {[%clk 0:00:49.9]}
19... exd4 {[%clk 0:00:46.6]} 20. Re1+ {[%clk 0:00:50.4]} 20... Kf7 {[%clk
0:00:42.3]} 21. Qh5+ {[%clk 0:00:48.6]} 21... g6 {[%clk 0:00:41.6]} 22. Qf3
{[%clk 0:00:47.6]} 22... Kg7 {[%clk 0:00:37.9]} 23. Rac1 {[%clk 0:00:45.4]}
23... Rhe8 {[%clk 0:00:36.6]} 24. Rxe8 {[%clk 0:00:42.8]} 24... Rxe8 {[%clk
0:00:37.5]} 25. Kg1 {[%clk 0:00:42.9]} 25... Re4 {[%clk 0:00:36.8]} 26. Bxe4
{[%clk 0:00:37.7]} 26... dxe4 {[%clk 0:00:37.7]} 27. Qb3 {[%clk 0:00:36.9]}
27... Bc6 {[%clk 0:00:37.6]} 28. Rd1 {[%clk 0:00:34.5]} 28... d3 {[%clk
0:00:37.1]} 29. Qa2 {[%clk 0:00:30.8]} 29... Qd4 {[%clk 0:00:32.4]} 30. Qa1
{[%clk 0:00:30.4]} 30... Qxa1 {[%clk 0:00:32.1]} 31. Rxa1 {[%clk 0:00:31.3]}
31... Kf6 {[%clk 0:00:32.7]} 32. Kf1 {[%clk 0:00:28.9]} 32... Ke5 {[%clk
0:00:32.9]} 33. Ke1 {[%clk 0:00:29.4]} 33... Kd4 {[%clk 0:00:33.4]} 34. Kd2
{[%clk 0:00:29.9]} 34... g5 {[%clk 0:00:31.6]} 35. Rc1 {[%clk 0:00:29.7]} 35...
f4 {[%clk 0:00:31.1]} 36. Re1 {[%clk 0:00:27.9]} 36... Kxc5 {[%clk 0:00:29.2]}
37. gxf4 {[%clk 0:00:26.4]} 37... gxf4 {[%clk 0:00:30.1]} 38. a4 {[%clk
0:00:24.8]} 38... Kd4 {[%clk 0:00:31]} 39. a5 {[%clk 0:00:25]} 39... b5 {[%clk
0:00:28.1]} 40. a6 {[%clk 0:00:24.9]} 40... b4 {[%clk 0:00:27.4]} 41. Rb1 {[%clk
0:00:24.5]} 41... e3+ {[%clk 0:00:27.1]} 42. Ke1 {[%clk 0:00:24.5]} 42... d2+
{[%clk 0:00:25.9]} 43. Kd1 {[%clk 0:00:24.2]} 43... Ba4+ {[%clk 0:00:23.3]} 44.
Ke2 {[%clk 0:00:24.4]} 44... d1=Q+ {[%clk 0:00:19.2]} 45. Rxd1+ {[%clk
0:00:24.1]} 45... Bxd1+ {[%clk 0:00:20.1]} 46. Kxd1 {[%clk 0:00:24.6]} 46...
exf2 {[%clk 0:00:21]} 0-1

[Event "*** SCC Grand Prix: Titled Tuesday Blitz"]
[Site "Chess.com"]
[Date "2020.06.02"]
[Round "4"]
[White "verdest"]
[Black "Xeniya2005"]
[Result "1-0"]
[WhiteElo "2588"]
[BlackElo "2300"]
[TimeControl "180+1"]
[EndTime "10:39:38 PDT"]
[Termination "verdest won by resignation"]

1. d4 {[%clk 0:03:00.9]} 1... Nf6 {[%clk 0:02:59.7]} 2. c4 {[%clk 0:03:00.7]}
2... b6 {[%clk 0:02:59.2]} 3. Nc3 {[%clk 0:02:59.3]} 3... Bb7 {[%clk 0:02:56.8]}
4. Qc2 {[%clk 0:02:58.8]} 4... d5 {[%clk 0:02:44.6]} 5. cxd5 {[%clk 0:02:57.7]}
5... Nxd5 {[%clk 0:02:43.5]} 6. Nf3 {[%clk 0:02:57.6]} 6... g6 {[%clk
0:02:41.6]} 7. e4 {[%clk 0:02:53.8]} 7... Nxc3 {[%clk 0:02:40.7]} 8. bxc3 {[%clk
0:02:54.7]} 8... Bg7 {[%clk 0:02:40.2]} 9. Bb5+ {[%clk 0:02:54.3]} 9... Nd7
{[%clk 0:02:39.4]} 10. O-O {[%clk 0:02:43.9]} 10... O-O {[%clk 0:02:36.9]} 11.
Rd1 {[%clk 0:02:43.8]} 11... a6 {[%clk 0:02:34]} 12. Bd3 {[%clk 0:02:34.8]}
12... c5 {[%clk 0:02:24]} 13. Bf4 {[%clk 0:02:34.4]} 13... Rc8 {[%clk
0:02:16.8]} 14. Qe2 {[%clk 0:02:33.2]} 14... b5 {[%clk 0:01:59]} 15. a4 {[%clk
0:02:26.6]} 15... Qb6 {[%clk 0:01:47.7]} 16. axb5 {[%clk 0:02:17.6]} 16... a5
{[%clk 0:01:40.7]} 17. Rac1 {[%clk 0:02:03.5]} 17... cxd4 {[%clk 0:01:28.9]} 18.
cxd4 {[%clk 0:02:03.3]} 18... Rxc1 {[%clk 0:01:27.4]} 19. Bxc1 {[%clk
0:01:56.9]} 19... Rc8 {[%clk 0:01:12.1]} 20. Bb2 {[%clk 0:01:53.7]} 20... a4
{[%clk 0:01:02.9]} 21. d5 {[%clk 0:01:41.1]} 21... Bxb2 {[%clk 0:00:55.9]} 22.
Qxb2 {[%clk 0:01:42]} 22... Nc5 {[%clk 0:00:48]} 23. Bb1 {[%clk 0:01:38.4]}
23... Ba6 {[%clk 0:00:42.1]} 24. Nd4 {[%clk 0:01:32.7]} 24... Bb7 {[%clk
0:00:25.2]} 25. h3 {[%clk 0:01:24]} 25... Ra8 {[%clk 0:00:23.4]} 26. Qa3 {[%clk
0:01:21.8]} 26... Kf8 {[%clk 0:00:21.3]} 27. Bc2 {[%clk 0:00:57.4]} 27... Nd7
{[%clk 0:00:18.3]} 28. Nc6 {[%clk 0:00:53.6]} 28... Bxc6 {[%clk 0:00:16.6]} 29.
bxc6 {[%clk 0:00:52.6]} 29... Nc5 {[%clk 0:00:15.5]} 30. Rb1 {[%clk 0:00:51.4]}
30... Qa7 {[%clk 0:00:15.4]} 31. e5 {[%clk 0:00:48]} 31... Kg7 {[%clk
0:00:11.3]} 32. d6 {[%clk 0:00:46.6]} 32... exd6 {[%clk 0:00:10.5]} 33. exd6
{[%clk 0:00:47.5]} 33... Ne6 {[%clk 0:00:10.4]} 34. c7 {[%clk 0:00:44.4]} 34...
Qa6 {[%clk 0:00:05.4]} 35. Qxa4 {[%clk 0:00:39.5]} 35... Qxa4 {[%clk 0:00:02.2]}
36. Bxa4 {[%clk 0:00:40.4]} 1-0

[Event "*** SCC Grand Prix: Titled Tuesday Blitz"]
[Site "Chess.com"]
[Date "2020.06.02"]
[Round "4"]
[White "frankshar"]
[Black "GAusal"]
[Result "1-0"]
[WhiteElo "2373"]
[BlackElo "1992"]
[TimeControl "180+1"]
[EndTime "10:39:39 PDT"]
[Termination "frankshar won on time"]

1. e4 {[%clk 0:03:00.9]} 1... e5 {[%clk 0:02:59.4]} 2. Nf3 {[%clk 0:03:00.7]}
2... Nc6 {[%clk 0:02:57.4]} 3. c4 {[%clk 0:03:00.3]} 3... Bc5 {[%clk 0:02:52.4]}
4. Nc3 {[%clk 0:02:59.3]} 4... d6 {[%clk 0:02:46.4]} 5. a3 {[%clk 0:02:59.2]}
5... a5 {[%clk 0:02:42.6]} 6. Be2 {[%clk 0:02:59.2]} 6... f5 {[%clk 0:02:38]} 7.
d3 {[%clk 0:02:56.1]} 7... Nf6 {[%clk 0:02:34]} 8. exf5 {[%clk 0:02:52]} 8...
Bxf5 {[%clk 0:02:28.1]} 9. Be3 {[%clk 0:02:52]} 9... O-O {[%clk 0:02:23.8]} 10.
O-O {[%clk 0:02:43.6]} 10... Nd7 {[%clk 0:02:19.3]} 11. d4 {[%clk 0:02:34.8]}
11... exd4 {[%clk 0:02:16]} 12. Nxd4 {[%clk 0:02:34.8]} 12... Nxd4 {[%clk
0:02:12.2]} 13. Bxd4 {[%clk 0:02:35.7]} 13... Qh4 {[%clk 0:02:08.1]} 14. Bxc5
{[%clk 0:02:24.4]} 14... Nxc5 {[%clk 0:02:03.6]} 15. Nd5 {[%clk 0:02:21.7]}
15... c6 {[%clk 0:01:58.5]} 16. Ne3 {[%clk 0:02:21.3]} 16... Qf6 {[%clk
0:01:31.4]} 17. Nxf5 {[%clk 0:02:01.1]} 17... Qxf5 {[%clk 0:01:30.7]} 18. Qxd6
{[%clk 0:02:01.1]} 18... Rad8 {[%clk 0:01:26.3]} 19. Qg3 {[%clk 0:01:48.2]}
19... Rd2 {[%clk 0:01:25.5]} 20. Bg4 {[%clk 0:01:44.2]} 20... Qf6 {[%clk
0:01:01.7]} 21. b4 {[%clk 0:01:06.2]} 21... axb4 {[%clk 0:00:56.2]} 22. axb4
{[%clk 0:01:07.1]} 22... Ne4 {[%clk 0:00:51]} 23. Qe3 {[%clk 0:01:06.6]} 23...
Rxf2 {[%clk 0:00:42.9]} 24. Bf3 {[%clk 0:00:44.9]} 24... Rxf1+ {[%clk
0:00:37.7]} 25. Rxf1 {[%clk 0:00:45.8]} 25... Nc3 {[%clk 0:00:18.4]} 26. c5
{[%clk 0:00:26.4]} 26... Kh8 {[%clk 0:00:17.3]} 27. h3 {[%clk 0:00:24.7]} 27...
Nd5 {[%clk 0:00:15]} 28. Qd2 {[%clk 0:00:22.2]} 28... Qf4 {[%clk 0:00:11.5]} 29.
Qxf4 {[%clk 0:00:20.9]} 29... Nxf4 {[%clk 0:00:10.7]} 30. Rd1 {[%clk 0:00:20.7]}
30... g6 {[%clk 0:00:02.5]} 31. Rd7 {[%clk 0:00:20.1]} 31... Nxh3+ {[%clk
0:00:02.2]} 32. gxh3 {[%clk 0:00:16.7]} 32... Rxf3 {[%clk 0:00:02]} 33. Rxb7
{[%clk 0:00:17.6]} 33... Rxh3 {[%clk 0:00:01.6]} 34. b5 {[%clk 0:00:16.1]} 34...
Rb3 {[%clk 0:00:02.5]} 35. bxc6 {[%clk 0:00:15.8]} 1-0